bitfinex/quotes_BTCUSD_20260311
["timestamp","ask_amount","ask_price","bid_price","bid_amount"]
[1773220739120,0.00918677,69641.0,69630.0,1e-08]
[1773220740179,0.00918677,69639.0,69630.0,1e-08]
[1773220740383,0.00918677,69637.0,69630.0,1e-08]
[1773220740565,0.07179987,69638.0,69630.0,1e-08]
[1773220740761,0.07179783,69640.0,69630.0,0.00895599]
[1773220740964,0.07179675,69643.0,69630.0,0.00895599]
[1773220741190,0.07179675,69643.0,69632.0,0.00895598]
[1773220742672,7.5e-05,69644.0,69633.0,0.07180503]
[1773220742876,0.001,69637.0,69634.0,0.00895598]
[1773220743278,7.5e-05,69644.0,69634.0,0.01011598]
[1773220744486,7.5e-05,69644.0,69634.0,0.00116]
[1773220744884,0.00926177,69644.0,69634.0,0.00116]
[1773220745396,0.00926177,69644.0,69634.0,0.00216]
[1773220745636,0.00926177,69644.0,69634.0,0.00116]
[1773220745801,0.00926177,69644.0,69633.0,0.00116]
[1773220747039,0.07179472,69643.0,69633.0,0.00116]
[1773220747617,0.07179472,69643.0,69633.0,0.07296467]
[1773220748223,0.07179472,69643.0,69634.0,0.00895598]
[1773220748553,0.00013092,69635.0,69634.0,0.00895598]
[1773220748859,0.07179472,69643.0,69633.0,0.00116]
[1773220749649,0.07190637,69643.0,69633.0,0.00116]
[1773220751327,0.00918677,69642.0,69633.0,0.00116]
[1773220752169,0.00918677,69642.0,69632.0,0.00136]
[1773220752469,0.00918677,69639.0,69627.0,0.07317071]
[1773220752625,0.00918677,69639.0,69624.0,0.00116]
[1773220753258,0.00918677,69637.0,69623.0,0.00136]
[1773220753661,0.07179987,69638.0,69624.0,0.00895598]
[1773220753863,0.00116,69636.0,69624.0,0.00895598]
[1773220754078,0.07179987,69638.0,69624.0,0.00895598]
[1773220754275,0.00116,69636.0,69624.0,0.00895598]
[1773220754693,0.07179987,69638.0,69624.0,0.00895598]
[1773220755295,0.07179987,69638.0,69626.0,0.00895598]
[1773220757115,7.5e-05,69635.0,69626.0,0.00895598]
[1773220757668,7.5e-05,69635.0,69627.0,0.0807672]
[1773220759353,7.5e-05,69635.0,69627.0,0.0817672]
[1773220760104,7.5e-05,69635.0,69627.0,0.00895598]
[1773220760357,7.5e-05,69635.0,69627.0,0.08076654]
[1773220761567,7.5e-05,69635.0,69626.0,0.07201122]
[1773220761568,7.5e-05,69635.0,69626.0,0.0002]
[1773220761770,0.00937884,69634.0,69623.0,0.00136]
[1773220761945,0.00937884,69632.0,69620.0,0.00116]
[1773220762145,0.00116,69634.0,69620.0,0.00116]
[1773220762146,0.00937884,69629.0,69620.0,0.00116]
[1773220762756,0.00937884,69629.0,69619.0,0.0002]
[1773220763693,0.07297019,69628.0,69619.0,0.0002]
[1773220763899,0.07297019,69628.0,69618.0,1e-08]
[1773220763900,0.00937884,69627.0,69618.0,1e-08]
[1773220764097,0.00937884,69627.0,69614.0,0.0002]
[1773220765798,0.00937884,69625.0,69614.0,0.0002]
[1773220766982,0.01037884,69625.0,69614.0,0.0002]
[1773220767187,0.01137884,69625.0,69614.0,0.0002]
[1773220767784,0.07181431,69624.0,69614.0,0.0002]
[1773220767986,0.08119315,69624.0,69614.0,0.0002]
[1773220769023,0.00937884,69623.0,69614.0,0.0002]
[1773220770047,0.07181637,69622.0,69614.0,0.0002]
[1773220770248,0.08119521,69622.0,69614.0,0.0002]
[1773220776385,0.08219521,69622.0,69614.0,0.0002]
[1773220777122,0.08119521,69622.0,69614.0,0.0002]
[1773220777322,0.07181637,69622.0,69614.0,0.0002]
[1773220779056,0.07281637,69622.0,69614.0,0.0002]
[1773220779670,0.00907723,69621.0,69614.0,0.0002]
[1773220780217,0.00907723,69621.0,69606.0,0.00116]
[1773220780369,0.07181637,69622.0,69606.0,0.00116]
[1773220780370,0.07181637,69622.0,69606.0,0.00871745]
[1773220780576,0.07181637,69622.0,69606.0,0.00987745]
[1773220781122,0.0808936,69622.0,69607.0,0.00116]
[1773220781309,0.0808936,69622.0,69607.0,0.0729916]
[1773220781502,0.00116,69621.0,69607.0,0.0729916]
[1773220781684,7.5e-05,69617.0,69607.0,0.0729916]
[1773220782502,7.5e-05,69617.0,69614.0,0.0002]
[1773220784406,7.5e-05,69617.0,69607.0,0.00136]
[1773220785020,7.5e-05,69617.0,69607.0,0.07319169]
[1773220785546,7.5e-05,69617.0,69607.0,0.00136]
[1773220785824,7.5e-05,69617.0,69607.0,0.07319115]
[1773220785825,0.07182256,69616.0,69607.0,0.07319115]
[1773220786228,0.07182256,69616.0,69607.0,0.00136]
[1773220789442,0.07182256,69616.0,69607.0,0.0731909]
[1773220789646,0.07182256,69616.0,69607.0,0.00136]
[1773220791668,0.07182256,69616.0,69607.0,0.07319178]
[1773220791875,0.07181844,69620.0,69608.0,0.00870311]
[1773220794177,0.07181844,69620.0,69607.0,0.07319178]
[1773220796477,0.08011589,69620.0,69607.0,0.07319178]
[1773220796759,0.00829745,69619.0,69604.0,0.24259758]
[1773220797054,0.00829745,69619.0,69608.0,0.00116]
[1773220797234,0.00829745,69619.0,69604.0,0.24259758]
[1773220797435,0.00829745,69619.0,69608.0,0.00116]
[1773220798424,0.00829745,69617.0,69607.0,0.0002]
[1773220798628,0.00829745,69617.0,69607.0,0.00136]
[1773220800691,0.07182256,69616.0,69607.0,0.00136]
[1773220801057,0.07182256,69616.0,69607.0,0.0731913]
[1773220801264,0.07182256,69616.0,69608.0,0.00870311]
[1773220801694,0.07203649,69622.0,69608.0,0.00870311]
[1773220801890,0.07181534,69623.0,69611.0,0.00870311]
[1773220802300,0.00022001,69629.0,69611.0,0.00870311]
[1773220802503,0.00022001,69629.0,69610.0,0.03963956]
[1773220802504,0.0090069,69630.0,69620.0,0.00870311]
[1773220802828,0.07224439,69636.0,69622.0,0.00870311]
[1773220802980,0.00044201,69636.0,69622.0,0.00881472]
[1773220803182,0.07224466,69636.0,69622.0,0.00881472]
[1773220803612,0.07224466,69636.0,69622.0,0.00581472]
[1773220803815,0.00044201,69636.0,69622.0,0.00581472]
[1773220804018,0.07224482,69636.0,69622.0,0.00581472]
[1773220804330,0.07224482,69636.0,69621.0,0.05867863]
[1773220804535,0.0723566,69636.0,69622.0,0.00796244]
[1773220805101,0.00022001,69630.0,69624.0,0.00793102]
[1773220807164,0.00022001,69630.0,69626.0,0.0079572]
[1773220808040,0.07179666,69642.0,69626.0,0.0079572]
[1773220808257,0.07201673,69643.0,69631.0,0.00429112]
[1773220808492,0.0720148,69643.0,69633.0,0.00429112]
[1773220809258,0.0720148,69643.0,69634.0,0.071804]
[1773220811671,0.00022001,69645.0,69634.0,0.071804]
[1773220812003,0.07223842,69650.0,69636.0,0.00496102]
[1773220812209,0.00022001,69643.0,69636.0,0.00496102]
[1773220813410,0.00022001,69643.0,69637.0,0.07180091]
[1773220813594,0.00022001,69643.0,69639.0,0.00515405]
[1773220814678,0.000222,69649.0,69639.0,0.00515405]
[1773220814883,0.000222,69649.0,69639.0,0.00615405]
[1773220815307,0.000222,69649.0,69639.0,0.04616591]
[1773220815732,0.000222,69649.0,69640.0,0.07179781]
[1773220815902,0.00829745,69647.0,69632.0,0.07180606]
[1773220816111,0.00829745,69647.0,69633.0,0.00116]
[1773220816450,0.00829745,69647.0,69634.0,0.00116]
[1773220816744,0.00829745,69647.0,69635.0,0.00116]
[1773220817097,0.00829745,69647.0,69636.0,0.00116]
[1773220817529,0.00829745,69647.0,69632.0,0.07180606]
[1773220817721,0.00829745,69647.0,69633.0,0.00116]
[1773220817926,0.00829745,69645.0,69639.0,0.001]
[1773220818344,0.00829745,69645.0,69638.0,0.07179977]
[1773220819150,0.07178957,69648.0,69638.0,0.07179977]
[1773220819731,0.00022001,69647.0,69638.0,0.07179977]
[1773220820265,0.07201104,69647.0,69638.0,0.07179977]
[1773220820491,0.08194929,69647.0,69638.0,0.07179977]
[1773220820659,0.00993825,69646.0,69637.0,0.07180057]
[1773220821073,0.00993825,69646.0,69637.0,0.07296057]
[1773220821286,0.00993825,69646.0,69631.0,0.07180644]
[1773220821707,0.00993825,69644.0,69631.0,0.00116]
[1773220821909,0.00993825,69640.0,69630.0,0.00116]
[1773220822075,0.00993825,69638.0,69627.0,0.07181026]
[1773220822311,0.00993825,69638.0,69628.0,0.00116]
[1773220822927,0.00993825,69638.0,69626.0,0.07308361]
[1773220823528,0.00993825,69638.0,69626.0,0.00011178]
[1773220823727,0.00993825,69638.0,69626.0,0.07192371]
[1773220824083,0.07180091,69637.0,69626.0,0.07192371]
[1773220824286,0.08173916,69637.0,69626.0,0.07192371]
[1773220824686,0.00116,69641.0,69628.0,0.00851466]
[1773220824922,0.07295575,69642.0,69630.0,0.03963956]
[1773220825152,0.07201156,69649.0,69631.0,0.00851466]
[1773220825153,0.07179472,69645.0,69631.0,0.00851466]
[1773220825284,0.07179472,69645.0,69632.0,0.00116]
[1773220825709,0.00993825,69644.0,69632.0,0.00116]
[1773220826321,0.08173297,69643.0,69632.0,0.00116]
[1773220826721,0.08173297,69643.0,69632.0,0.07296596]
[1773220826933,0.00022001,69642.0,69632.0,0.07296596]
[1773220827237,0.00993825,69641.0,69632.0,0.00116]
[1773220828009,0.00993825,69641.0,69626.0,0.00011178]
[1773220828210,0.00993825,69639.0,69626.0,0.00011178]
[1773220830352,0.00993825,69637.0,69626.0,0.00011178]
[1773220832689,0.00993825,69635.0,69626.0,0.00011178]
[1773220834509,0.01093825,69635.0,69626.0,0.00011178]
[1773220834907,0.071804,69634.0,69626.0,0.00011178]
[1773220835131,0.08174225,69634.0,69626.0,0.00011178]
[1773220835333,0.00993825,69633.0,69626.0,0.00011178]
[1773220835961,0.00993825,69633.0,69626.0,0.00031178]
[1773220836752,0.071804,69634.0,69626.0,0.00031178]
[1773220837534,0.072804,69634.0,69626.0,0.00031178]
[1773220837757,0.071804,69634.0,69626.0,0.00031178]
[1773220838103,0.07179376,69644.0,69628.0,0.01088048]
[1773220838307,0.07179376,69644.0,69631.0,0.01088048]
[1773220838308,0.07179369,69644.0,69631.0,0.01088048]
[1773220838709,0.07201619,69642.0,69631.0,0.01088048]
[1773220839473,0.07201619,69642.0,69632.0,0.07180606]
[1773220841177,0.00022001,69642.0,69632.0,0.07180606]
[1773220841375,0.00022001,69642.0,69632.0,0.08304164]
[1773220841653,0.00022001,69642.0,69633.0,0.01123558]
[1773220841980,0.00022001,69647.0,69633.0,0.01123558]
[1773220842542,0.07223793,69650.0,69637.0,0.03963956]
[1773220842543,0.00045001,69650.0,69637.0,0.03963956]
[1773220842705,0.00022001,69651.0,69638.0,0.01251009]
[1773220843294,0.00022001,69656.0,69638.0,0.01251009]
[1773220843694,0.00022001,69656.0,69640.0,0.01146408]
[1773220843925,0.07200157,69656.0,69640.0,0.01146408]
[1773220844119,0.00022001,69656.0,69640.0,0.01146408]
[1773220844721,0.00022001,69647.0,69640.0,0.01146408]
[1773220845330,0.00022001,69647.0,69640.0,0.01246408]
[1773220845717,0.07200176,69656.0,69640.0,0.01246408]
[1773220845718,0.00022001,69656.0,69642.0,0.1144007]
[1773220845946,0.00022001,69657.0,69647.0,0.01180046]
[1773220846145,0.00022001,69657.0,69646.0,0.03963956]
[1773220846146,0.00022001,69657.0,69648.0,0.01296046]
[1773220847124,0.00033181,69657.0,69648.0,0.00116]
[1773220847573,0.07211245,69657.0,69648.0,0.00116]
[1773220847792,0.07211245,69657.0,69649.0,0.07178853]
[1773220847936,0.00033181,69657.0,69649.0,0.07178853]
[1773220852671,0.00033181,69657.0,69648.0,0.07314853]
[1773220852672,0.01260881,69656.0,69643.0,0.07179416]
[1773220853000,0.01260881,69656.0,69644.0,0.07295369]
[1773220853749,0.01260881,69653.0,69640.0,0.00116]
[1773220853936,0.01260881,69649.0,69640.0,0.00116]
[1773220854301,0.07178957,69648.0,69640.0,0.00116]
[1773220854635,0.01260881,69647.0,69640.0,0.00116]
[1773220854820,0.01260881,69647.0,69639.0,0.07295866]
[1773220855231,0.01260881,69647.0,69638.0,0.0717979]
[1773220855429,0.01260881,69647.0,69639.0,0.00116]
[1773220855774,0.01260881,69647.0,69638.0,0.0717979]
[1773220855916,0.01260881,69647.0,69639.0,0.00116]
[1773220856343,0.07179163,69646.0,69640.0,0.00116]
[1773220856549,0.08440044,69646.0,69640.0,0.00116]
[1773220857419,0.08440044,69646.0,69635.0,0.07180269]
[1773220857420,0.01260881,69645.0,69635.0,0.07180297]
[1773220857649,0.01260881,69645.0,69636.0,0.00116]
[1773220858053,0.01260881,69645.0,69634.0,0.0002]
[1773220858254,0.01260881,69643.0,69634.0,0.07200355]
[1773220858452,0.08440456,69642.0,69634.0,0.0002]
[1773220859859,0.01260881,69641.0,69634.0,0.0002]
[1773220860475,0.07179781,69640.0,69634.0,0.0002]
[1773220861727,0.01260881,69639.0,69634.0,0.0002]
[1773220861932,0.01260881,69639.0,69627.0,0.0002]
[1773220862153,0.01260881,69639.0,69623.0,0.07181507]
[1773220862357,0.01260881,69637.0,69626.0,0.07201184]
[1773220862989,0.01260881,69637.0,69626.0,0.07317184]
[1773220863832,0.01360881,69637.0,69626.0,0.07317184]
[1773220864401,0.01260881,69635.0,69626.0,0.00136]
[1773220864587,0.01260881,69635.0,69626.0,0.07317223]
[1773220865192,0.01260881,69635.0,69627.0,0.00116]
[1773220865647,0.01267835,69635.0,69626.0,0.07201186]
[1773220865872,0.01267835,69635.0,69626.0,0.07317186]
[1773220866640,0.01260881,69633.0,69626.0,0.07317186]
[1773220867228,0.07187354,69635.0,69626.0,0.07317186]
[1773220869458,0.07187354,69635.0,69626.0,0.07417186]
[1773220871841,6.954e-05,69635.0,69626.0,0.07417186]
[1773220872043,0.00022001,69637.0,69627.0,0.0104012]
[1773220872191,0.00116,69643.0,69627.0,0.0104012]
[1773220872192,0.07179556,69643.0,69627.0,0.01167298]
[1773220872399,0.07179556,69643.0,69631.0,0.0104012]
[1773220872876,0.08439683,69650.0,69632.0,0.07378919]
[1773220873069,0.07178802,69650.0,69633.0,0.01046473]
[1773220873506,0.07178802,69650.0,69632.0,0.07378919]
[1773220873507,0.07178802,69650.0,69640.0,0.03959697]
[1773220873706,0.07178762,69650.0,69641.0,0.00116]
[1773220873937,0.07178762,69650.0,69642.0,0.00116]
[1773220874364,0.07178762,69650.0,69643.0,0.07179472]
[1773220874555,0.00022001,69644.0,69643.0,0.07179472]
[1773220875460,0.00022001,69644.0,69642.0,0.07295502]
[1773220881561,0.0720069,69651.0,69642.0,0.08399797]
[1773220881562,0.00022001,69651.0,69642.0,0.08399797]
[1773220881902,0.00022001,69651.0,69642.0,0.07295502]
[1773220883666,0.00022001,69651.0,69642.0,0.07395502]
[1773220883874,0.07200043,69657.0,69643.0,0.01119516]
[1773220884370,0.07199979,69658.0,69643.0,0.01119516]
[1773220885085,0.00022001,69658.0,69643.0,0.01119516]
[1773220885424,0.00022001,69658.0,69648.0,0.03959697]
[1773220885629,0.00022001,69658.0,69650.0,0.0717875]
[1773220886476,0.07199947,69658.0,69650.0,0.0717875]
[1773220886653,0.07211125,69658.0,69651.0,0.00116]
[1773220887767,0.07211125,69658.0,69651.0,0.07294565]
[1773220890595,0.07211125,69658.0,69646.0,0.07179163]
[1773220890795,0.07211125,69658.0,69647.0,0.00116]
[1773220891590,0.00033179,69658.0,69647.0,0.01266905]
[1773220891797,0.00033179,69658.0,69645.0,0.07179184]
[1773220891798,0.01462902,69656.0,69645.0,0.00116]
[1773220892644,0.08641049,69656.0,69646.0,0.07179163]
[1773220893771,0.07178147,69656.0,69646.0,0.07179163]
[1773220893948,0.01462902,69655.0,69646.0,0.07179163]
[1773220894153,0.01462902,69655.0,69645.0,0.07295236]
[1773220894949,0.07178338,69654.0,69645.0,0.07295236]
[1773220895362,0.0864124,69654.0,69645.0,0.07295236]
[1773220895785,0.07178147,69656.0,69645.0,0.07295236]
[1773220895987,0.00033179,69658.0,69646.0,0.01466013]
[1773220896632,0.07211124,69658.0,69646.0,0.01466013]
[1773220897055,0.00022001,69656.0,69645.0,0.07295236]
[1773220897229,0.00022001,69656.0,69645.0,0.07179236]
[1773220897450,0.00022001,69656.0,69646.0,0.00116]
[1773220897961,0.00022001,69656.0,69647.0,0.00116]
[1773220898555,0.01473974,69655.0,69647.0,0.00116]
[1773220898761,0.01473974,69655.0,69645.0,0.00116]
[1773220899112,0.08652312,69654.0,69644.0,0.00116]
[1773220899549,0.08652312,69654.0,69642.0,0.0002]
[1773220899753,0.08652312,69654.0,69644.0,0.00116]
[1773220900533,0.08652312,69654.0,69642.0,0.0002]
[1773220900738,0.08652312,69654.0,69643.0,0.00116]
[1773220901090,0.08652312,69654.0,69642.0,0.0002]
[1773220901091,0.07178544,69652.0,69642.0,0.0002]
[1773220901238,0.01473974,69651.0,69638.0,0.07179987]
[1773220901435,0.01473974,69651.0,69637.0,0.07180066]
[1773220901637,0.01473974,69651.0,69635.0,0.0002]
[1773220901975,0.01473974,69651.0,69635.0,0.07200279]
[1773220902185,0.01473974,69651.0,69631.0,0.07180689]
[1773220902380,0.07294544,69652.0,69631.0,0.07180689]
[1773220902381,0.01473974,69649.0,69632.0,0.00116]
[1773220902744,0.01473974,69649.0,69631.0,0.07180689]
[1773220902942,0.01473974,69649.0,69631.0,0.07296689]
[1773220903352,0.07178957,69648.0,69631.0,0.07180689]
[1773220903561,0.01473974,69647.0,69631.0,0.07296689]
[1773220903765,0.01473974,69645.0,69631.0,0.07296689]
[1773220904009,0.01473974,69645.0,69631.0,0.07180689]
[1773220904214,0.01473974,69645.0,69631.0,0.07296689]
[1773220904568,0.01473974,69645.0,69632.0,0.00116]
[1773220905062,0.01473974,69645.0,69631.0,0.07296689]
[1773220905262,0.01473974,69645.0,69637.0,0.0002]
[1773220905489,0.01473974,69643.0,69637.0,0.0002]
[1773220906685,0.01573974,69643.0,69637.0,0.0002]
[1773220907105,0.01473974,69643.0,69637.0,0.0002]
[1773220907308,0.07179369,69644.0,69637.0,0.0002]
[1773220907515,0.07179369,69646.0,69637.0,0.0002]
[1773220908349,0.001,69643.0,69637.0,0.0002]
[1773220908768,0.0717906,69649.0,69637.0,0.0002]
[1773220908769,0.07178438,69654.0,69638.0,0.01667274]
[1773220908984,0.001,69646.0,69638.0,0.01667274]
[1773220909355,0.00116,69652.0,69638.0,0.01667274]
[1773220909563,0.00116,69652.0,69639.0,0.08734794]
[1773220909564,0.001,69643.0,69639.0,0.08734794]
[1773220909943,0.07179135,69647.0,69639.0,0.08734794]
[1773220910145,0.07179135,69647.0,69639.0,0.07179884]
[1773220910348,0.07179135,69647.0,69640.0,0.0155491]
[1773220910750,0.07179135,69647.0,69638.0,0.00116]
[1773220910982,0.07179135,69647.0,69637.0,0.07199996]
[1773220910983,0.08620667,69647.0,69639.0,0.00116]
[1773220912399,0.08720667,69647.0,69639.0,0.00116]
[1773220913038,0.07279135,69647.0,69639.0,0.07295875]
[1773220913244,0.07179135,69647.0,69639.0,0.07295875]
[1773220913449,0.07279135,69647.0,69639.0,0.07295875]
[1773220913854,0.07301136,69647.0,69639.0,0.07295875]
[1773220914537,0.07301136,69647.0,69639.0,0.00116]
[1773220914738,0.07201136,69647.0,69639.0,0.00116]
[1773220914942,0.07301136,69647.0,69639.0,0.00116]
[1773220915116,0.07301136,69647.0,69639.0,0.0729586]
[1773220915311,0.07201136,69647.0,69639.0,0.00116]
[1773220915516,0.07301136,69647.0,69639.0,0.00116]
[1773220915744,0.07301136,69647.0,69639.0,0.07295817]
[1773220916231,0.07301136,69647.0,69639.0,0.00116]
[1773220916438,0.07201136,69647.0,69639.0,0.07295852]
[1773220916640,0.07301136,69647.0,69639.0,0.07295852]
[1773220918486,0.07201136,69647.0,69639.0,0.07295852]
[1773220918866,0.07301136,69647.0,69639.0,0.07295852]
[1773220919060,0.07201136,69647.0,69639.0,0.07295852]
[1773220919887,0.00022001,69654.0,69640.0,0.0155491]
[1773220920093,0.00022001,69654.0,69641.0,0.0155491]
[1773220920469,0.00022001,69654.0,69643.0,0.0155491]
[1773220920877,0.00022001,69657.0,69644.0,0.03960542]
[1773220921075,1e-08,69657.0,69645.0,0.0155491]
[1773220921303,1e-08,69657.0,69648.0,0.0154741]
[1773220921512,1e-08,69657.0,69648.0,0.0153991]
[1773220921845,1e-08,69657.0,69648.0,0.0152491]
[1773220922047,7.5e-05,69652.0,69648.0,0.0152491]
[1773220922590,7.5e-05,69652.0,69649.0,0.07178853]
[1773220922931,7.5e-05,69652.0,69650.0,0.0155491]
[1773220923330,1e-08,69657.0,69650.0,0.0155491]
[1773220924692,1e-08,69657.0,69651.0,0.07178647]
[1773220924932,1e-08,69657.0,69652.0,0.00116]
[1773220925149,1e-08,69657.0,69653.0,0.0155491]
[1773220925968,0.00100001,69657.0,69653.0,0.0155491]
[1773220926127,1e-08,69657.0,69653.0,0.0155491]
[1773220926482,1e-08,69657.0,69649.0,0.07178853]
[1773220926483,0.01441532,69656.0,69643.0,0.00116]
[1773220926756,0.0717803,69657.0,69645.0,0.07179266]
[1773220926963,1e-08,69657.0,69646.0,0.0155491]
[1773220928983,1e-08,69657.0,69647.0,0.0717906]
[1773220930643,1e-08,69657.0,69648.0,0.0155491]
[1773220930986,1e-08,69657.0,69649.0,0.07178853]
[1773220932570,1e-08,69657.0,69650.0,0.00116]
[1773220933018,1e-08,69657.0,69651.0,0.07178647]
[1773220934050,1e-08,69657.0,69650.0,0.07294647]
[1773220934846,1e-08,69657.0,69650.0,0.00116]
[1773220936086,1e-08,69657.0,69650.0,0.07294745]
[1773220936288,0.00100001,69657.0,69650.0,0.00116]
[1773220936620,1e-08,69657.0,69650.0,0.00116]
[1773220937398,1e-08,69657.0,69650.0,0.00136]
[1773220937598,1e-08,69657.0,69650.0,0.07314731]
[1773220939758,1e-08,69657.0,69650.0,0.00136]
[1773220940932,1e-08,69657.0,69650.0,0.07314729]
[1773220941230,1e-08,69657.0,69650.0,0.00136]
[1773220942475,0.00100001,69657.0,69650.0,0.00136]
[1773220943790,0.00100001,69657.0,69650.0,0.07314685]
[1773220944497,0.07178132,69656.0,69650.0,0.00136]
[1773220945829,0.00050681,69661.0,69651.0,0.07178647]
[1773220946120,0.07228306,69661.0,69651.0,0.07189825]
[1773220946344,0.01576171,69660.0,69651.0,0.00011178]
[1773220946549,0.01576171,69658.0,69651.0,0.00011178]
[1773220946920,0.00022001,69657.0,69651.0,0.00011178]
[1773220948309,0.00122001,69657.0,69651.0,0.00011178]
[1773220948954,0.07178132,69656.0,69651.0,0.00011178]
[1773220949966,0.07300059,69657.0,69651.0,0.00011178]
[1773220950535,0.07200059,69657.0,69651.0,0.00011178]
[1773220951335,0.07200059,69657.0,69650.0,0.0002]
[1773220951477,0.07211231,69657.0,69650.0,0.0002]
[1773220951681,0.07311231,69657.0,69650.0,0.0002]
[1773220952085,0.07411231,69657.0,69650.0,0.0002]
[1773220952501,0.07211231,69657.0,69650.0,0.0002]
[1773220954399,0.07211231,69657.0,69645.0,0.0002]
[1773220954593,0.07211231,69657.0,69638.0,0.0002]
[1773220954594,0.01692171,69656.0,69639.0,0.07179884]
[1773220954796,0.01692171,69656.0,69640.0,0.00116]
[1773220955205,0.07178235,69655.0,69640.0,0.00116]
[1773220955345,0.01576171,69654.0,69640.0,0.07295765]
[1773220955552,0.07211231,69657.0,69641.0,0.01486172]
[1773220955553,0.07211268,69657.0,69641.0,0.01486172]
[1773220955752,0.07211268,69657.0,69640.0,0.11256307]
[1773220955753,0.00033173,69657.0,69647.0,0.03960542]
[1773220955954,0.00033173,69657.0,69648.0,0.01486172]
[1773220956637,0.00116,69659.0,69648.0,0.01486172]
[1773220956868,0.07293831,69659.0,69648.0,0.01613344]
[1773220957076,0.001,69656.0,69648.0,0.01613344]
[1773220957291,0.07293831,69659.0,69649.0,0.07178853]
[1773220957485,7.5e-05,69652.0,69650.0,0.01486172]
[1773220960427,0.00022001,69663.0,69650.0,0.07178739]
[1773220960634,0.00022001,69663.0,69651.0,0.01664949]
[1773220961669,0.07199481,69663.0,69651.0,0.01780949]
[1773220962071,0.07199481,69663.0,69651.0,0.01664949]
[1773220962406,0.07199927,69659.0,69648.0,0.00011172]
[1773220962613,0.07199927,69659.0,69651.0,0.001]
[1773220963701,0.07199927,69659.0,69649.0,0.01664949]
[1773220963702,0.07199927,69659.0,69652.0,7.5e-05]
[1773220964022,0.07199833,69659.0,69652.0,7.5e-05]
[1773220964185,0.07299833,69659.0,69652.0,7.5e-05]
[1773220964513,0.00022001,69659.0,69652.0,7.5e-05]
[1773220965126,0.07199847,69659.0,69652.0,7.5e-05]
[1773220966519,0.00022001,69659.0,69652.0,7.5e-05]
[1773220967297,0.07299851,69659.0,69652.0,7.5e-05]
[1773220968574,0.07199851,69659.0,69652.0,7.5e-05]
[1773220970502,0.07299851,69659.0,69652.0,7.5e-05]
[1773220970820,0.07199851,69659.0,69652.0,7.5e-05]
[1773220972209,0.00022001,69659.0,69652.0,7.5e-05]
[1773220972418,1e-08,69664.0,69653.0,0.01835359]
[1773220972620,1e-08,69664.0,69655.0,0.01835359]
[1773220974333,1e-08,69664.0,69657.0,0.01835359]
[1773220976779,0.00021661,69664.0,69658.0,0.07177926]
[1773220976996,0.00021661,69664.0,69658.0,0.09013285]
[1773220977206,0.00029501,69670.0,69658.0,0.09013285]
[1773220977207,1e-08,69673.0,69659.0,0.01835359]
[1773220977410,1e-08,69673.0,69658.0,0.07177926]
[1773220977411,1e-08,69673.0,69661.0,0.01835359]
[1773220977630,1e-08,69673.0,69662.0,0.00116]
[1773220977875,1e-08,69673.0,69661.0,0.01835359]
[1773220978147,1e-08,69673.0,69663.0,0.00116]
[1773220978345,1e-08,69673.0,69661.0,0.01835359]
[1773220978547,1e-08,69673.0,69664.0,0.00116]
[1773220979051,1e-08,69673.0,69665.0,0.07177205]
[1773220979495,1e-08,69673.0,69666.0,0.00116]
[1773220981076,1e-08,69673.0,69667.0,0.07176999]
[1773220984240,1e-08,69673.0,69659.0,0.07177803]
[1773220984241,0.01776645,69672.0,69661.0,7.5e-05]
[1773220984440,0.01776645,69672.0,69662.0,0.07177514]
[1773220984773,0.01892645,69671.0,69662.0,0.07177514]
[1773220985609,0.0717669,69670.0,69662.0,0.07177514]
[1773220987246,0.0727669,69670.0,69662.0,0.07177514]
[1773220987448,0.0717669,69670.0,69662.0,0.07177514]
[1773220989151,0.0717669,69670.0,69661.0,0.07301093]
[1773220989885,0.07198691,69670.0,69661.0,0.07301093]
[1773220990408,0.08975336,69670.0,69661.0,0.001235]
[1773220990575,0.01776645,69669.0,69661.0,0.001235]
[1773220990870,0.01776645,69669.0,69661.0,0.07301103]
[1773220991227,0.07176896,69668.0,69661.0,0.07301103]
[1773220992402,0.08953491,69669.0,69662.0,0.07177514]
[1773220993760,0.09053491,69669.0,69662.0,0.07177514]
[1773220993963,0.08953491,69669.0,69662.0,0.07177514]
[1773220994390,0.09053491,69669.0,69662.0,0.07177514]
[1773220994976,0.01776645,69668.0,69657.0,0.07293847]
[1773220996658,0.0895357,69668.0,69657.0,0.07177847]
[1773220996862,0.0895357,69668.0,69657.0,0.07293847]
[1773220997503,0.0895357,69668.0,69662.0,0.0002]
[1773220998417,0.0895357,69668.0,69657.0,0.07177847]
[1773220998418,0.01776645,69667.0,69657.0,0.07177847]
[1773220998586,0.01776645,69667.0,69657.0,0.07293847]
[1773220998996,0.07177102,69666.0,69657.0,0.07293847]
[1773220999191,0.07177102,69666.0,69657.0,0.00116]
[1773220999669,0.08953664,69667.0,69657.0,0.00116]
[1773220999914,0.07177019,69667.0,69658.0,0.01776155]
[1773221000129,0.07177019,69667.0,69659.0,0.00455622]
[1773221000336,0.07177019,69667.0,69658.0,0.01776155]
[1773221000714,0.001,69666.0,69658.0,0.01776155]
[1773221000911,0.07176925,69668.0,69659.0,0.07177823]
[1773221001123,0.07292836,69669.0,69660.0,0.01776155]
[1773221001321,0.07292836,69669.0,69661.0,0.00449703]
[1773221001851,0.001,69666.0,69661.0,0.00449703]
[1773221002292,0.001,69666.0,69660.0,0.01776155]
[1773221002709,0.001,69666.0,69659.0,0.07177823]
[1773221003047,0.07292836,69669.0,69659.0,0.07177823]
[1773221003283,0.09069609,69669.0,69658.0,0.07177823]
[1773221003636,0.01776773,69668.0,69657.0,0.07293823]
[1773221003989,0.001,69666.0,69657.0,0.09069978]
[1773221004362,0.07176836,69669.0,69657.0,0.09069978]
[1773221004592,0.07276836,69669.0,69657.0,0.09069978]
[1773221004734,0.07176836,69669.0,69657.0,0.09069978]
[1773221005368,0.07176836,69669.0,69661.0,0.0002]
[1773221006894,0.07276836,69669.0,69661.0,0.0002]
[1773221009082,0.07276836,69669.0,69657.0,0.07766617]
[1773221010072,0.07176836,69669.0,69657.0,0.07766617]
[1773221010485,0.07276836,69669.0,69657.0,0.07766617]
[1773221012160,0.09053609,69669.0,69657.0,0.05990462]
[1773221014170,0.08953609,69669.0,69657.0,0.05990462]
[1773221014670,0.08953609,69669.0,69657.0,0.06010462]
[1773221014823,0.0897561,69669.0,69657.0,0.06010462]
[1773221016391,0.0907561,69669.0,69657.0,0.00136]
[1773221016560,0.01776773,69668.0,69657.0,0.00136]
[1773221018678,0.01641167,69666.0,69657.0,0.0002]
[1773221019751,0.01641167,69666.0,69653.0,0.07178338]
[1773221020050,0.0395754,69663.0,69653.0,0.07178338]
[1773221020205,0.01641167,69662.0,69653.0,0.07178338]
[1773221020610,0.07177617,69661.0,69653.0,0.07178338]
[1773221021261,0.01641167,69662.0,69653.0,0.07178338]